[Event "4NCL 2022-2023"]
[Site "Daventry"]
[Date "2023.02.11"]
[Round "5.35"]
[White "Kilpatrick, Callum"]
[Black "McClement, Andrew"]
[Result "1-0"]
[ECO "B81"]
[WhiteElo "2415"]
[BlackElo "2210"]
[Annotator "TA"]
[PlyCount "83"]
[EventDate "2022.10.20"]
[EventType "team-tourn"]
[EventCountry "ENG"]
[SourceTitle "playchess.com"]
[Source "ChessBase"]
[SourceQuality "1"]
[TimeControl "40/6000+30:2400+30"]

{[%evp 16,82,68,37,64,70,79,87,102,84,107,99,106,96,93,93,103,84,131,137,137,144,147,68,84,21,21,19,78,61,81,25,219,-47,2,-7,-7,0,-11,-13,8,0,0,-3,19,0,0,-38,0,-9,49,8,558,545,547,538,622,527,516,497,762,738,2276,2454,29986,29987,29997,29998,29999]} 1. e4 {[%emt 0:03:54]} c5 {[%emt 0:00:01]} 2. Nf3 {[%emt 0:00:54]} d6 {[%emt 0:00:01]} 3. d4 {[%emt 0:00:42]} cxd4 {[%emt 0:00:02]} 4. Nxd4 {[%emt 0:00:16]} Nf6 {[%emt 0:00:05]} 5. Nc3 {[%emt 0:00:09]} e6 {[%emt 0:00:03]} 6. g4 {[%emt 0:01:17]} h6 {[%emt 0:00:01]} 7. Rg1 {[%emt 0:01:23]} Be7 {[%emt 0:00:08]} 8. Be3 {[%emt 0:02:07]} Nc6 {[%emt 0:02:18]} 9. Qe2 {[%emt 0:03:02]} a6 {[%emt 0:05:19] B81: Sicilian Scheveningen: Keres Attack.} 10. O-O-O {[%emt 0:07:14]} Qc7 {[%emt 0:00:22]} 11. h4 {[%emt 0:10:55]} Nxd4 {[%emt 0:09:49] [#] White is better.} 12. Bxd4 $146 {[%emt 0:13:26] And now g5 would win.} ({Predecessor:} 12. Rxd4 Nh7 13. g5 hxg5 14. hxg5 Nf8 15. f4 g6 16. Kb1 b5 17. Bg2 Rb8 18. a3 {1-0 Vroombout,E (2141)-Klapwijk,B (2022) Hoogeveen Unive op 2010 (6)}) 12... e5 {[%emt 0:01:30]} 13. Be3 {[%emt 0:00:04] Black must now prevent g5.} Be6 {[%emt 0:00:11]} 14. g5 {[%emt 0:00:57]} hxg5 {[%emt 0:00:06]} 15. hxg5 {[%emt 0:00:08]} Nd7 {[%emt 0:00:21]} 16. g6 {[%emt 0:00:33]} Rc8 {[%emt 0:07:45]} (16... f6 $142) 17. gxf7+ {[%emt 0:00:47]} Kxf7 {[%emt 0:00:03]} 18. Qf3+ {[%emt 0:18:51]} Bf6 {[%emt 0:07:07]} 19. Bd3 {[%emt 0:00:24] White is more active.} (19. Kb1 $16) 19... Nc5 {[%emt 0:06:11]} 20. Bxc5 {[%emt 0:01:03]} (20. Kb1 $16) 20... Qxc5 $11 {[%emt 0:00:16]} 21. Nd5 {[%emt 0:00:23]} Rh6 {[%emt 0:23:04]} (21... Bxd5 $11 22. exd5 Ke7) 22. Rg3 {[%emt 0:01:29]} Rch8 {[%emt 0:16:54][%cal Bc8h8,Bh8h4,Bh4f4][%mdl 32]} 23. Rdg1 {[%emt 0:00:53] Chess con chili.} (23. b4 $16 Qc6 24. Rdg1) 23... Ke8 $2 {[%emt 0:02:41] [#]} (23... Bxd5 $11 24. exd5 (24. Rxg7+ Ke8 $11) 24... Ke8) 24. Ne3 $2 {[%emt 0:32:13]} (24. b4 $1 $18 {[%cal Rb4c5]} Qc8 25. Rxg7 Bxg7 26. Rxg7) 24... Rh2 {[%emt 0:05:12]} (24... Bxa2 $15 25. Nf5 Rh2) 25. b3 {[%emt 0:06:06]} R8h4 {[%emt 0:11:31]} 26. R3g2 {[%emt 0:01:23]} Rf4 {[%emt 0:01:00]} 27. Qe2 {[%emt 0:00:32]} Rh3 {[%emt 0:03:23]} 28. Rg3 {[%emt 0:02:24]} Rh2 {[%emt 0:01:20]} 29. R3g2 {[%emt 0:00:01][%cal Bg3g2,Bg2h2,Bh2h4][%mdl 32]} Rh3 {[%emt 0:01:57]} 30. Kb1 {[%emt 0:01:14]} (30. Bc4 $5 {[%cal Rc4e6]} Bf7 31. Bxf7+ Kxf7 32. f3 $11) 30... Kd8 {[%emt 0:02:39]} 31. a4 {[%emt 0:00:20]} Kc8 {[%emt 0:00:44]} 32. Rd1 {[%emt 0:00:22]} Rhf3 {[%emt 0:02:45]} ({Black should try} 32... Bf7 $11) 33. Rh2 {[%emt 0:00:36][%cal Od3a6] White wants to play Bxa6!} (33. Bc4 {simplifies} Bxc4 34. Nxc4 Kb8 35. Rxd6 Rxf2 36. Rxf2 Qxf2 37. Qxf2 Rxf2 38. Rd7) 33... Bh4 $2 {[%emt 0:00:23][%mdl 8192] [#]} (33... Kc7 $11 {and Black has nothing to worry.}) 34. Rxh4 $1 $18 {[%emt 0:00:08][%mdl 576] Deflection} Rxf2 {[%emt 0:00:34]} 35. Rh8+ {[%emt 0:00:14]} Kc7 {[%emt 0:00:07]} 36. Qe1 {[%emt 0:00:10] aiming for Bc4.} R4f3 {[%emt 0:00:57]} 37. Nc4 {[%emt 0:01:16]} Bxc4 {[%emt 0:01:04]} (37... Rf8 $142 38. Rxf8 Rxf8) 38. Bxc4 {[%emt 0:00:02]} ({Worse is} 38. bxc4 Qb6+ 39. Kc1 Qd4 $11) 38... Re3 {[%emt 0:00:32]} 39. Qg1 {[%emt 0:00:40]} Rc3 {[%emt 0:00:17]} 40. a5 {[%emt 0:01:18] White mates.} ({And not} 40. Qg4 Rcxc2 41. Rc8+ (41. Qxg7+ Kb6 $11) 41... Kb6 42. Rxc5 Rb2+ 43. Ka1 Ra2+ 44. Kb1 Rab2+ 45. Ka1 Ra2+ 46. Kb1 Rab2+ $11) 40... Rcxc2 {[%emt 0:01:14]} 41. Qxg7+ {[%emt 0:40:14]} Kc6 {[%emt 0:40:04]} 42. Rc8# {[%emt 0:00:09] A superb game by Kilpatrick.   Weighted Error Value: White=0.34/Black=0.59} 1-0

[Event "4NCL 2022-2023"]
[Site "Daventry"]
[Date "2023.02.11"]
[Round "5.36"]
[White "Gallagher, Daniel GH"]
[Black "Gallana, Marco"]
[Result "1/2-1/2"]
[ECO "B33"]
[WhiteElo "2218"]
[BlackElo "2257"]
[Annotator "TA"]
[PlyCount "124"]
[EventDate "2022.10.20"]
[EventType "team-tourn"]
[EventCountry "ENG"]
[SourceTitle "playchess.com"]
[Source "ChessBase"]
[SourceQuality "1"]
[TimeControl "40/6000+30:2400+30"]

{[%evp 16,124,9,11,17,-23,-14,-11,0,-9,0,0,2,-7,0,-4,8,0,2,0,30,18,26,17,24,38,37,36,35,38,103,97,146,137,134,0,0,0,0,0,0,-56,-53,-45,-53,-61,-58,-57,-75,-61,-26,-26,-28,-30,-29,-79,-85,-88,0,-16,-16,-16,-16,-16,0,-16,-8,-8,0,0,0,0,0,0,0,-8,-16,-16,0,-8,-8,-8,0,-8,0,0,0,0,0,0,0,0,0,0,0,0,0,0,0,0,0,0,0,0,0,0,0,0,0,0,0]} 1. e4 {[%emt 0:00:14]} c5 {[%emt 0:00:08]} 2. Nc3 {[%emt 0:00:22]} Nc6 {[%emt 0:00:38]} 3. Nge2 {[%emt 0:00:28]} Nf6 {[%emt 0:03:00]} 4. d4 {[%emt 0:00:19]} cxd4 {[%emt 0:00:22]} 5. Nxd4 {[%emt 0:00:06]} e5 {[%emt 0:00:28]} 6. Ndb5 {[%emt 0:00:13]} d6 {[%emt 0:00:19]} 7. Nd5 {[%emt 0:00:32]} Nxd5 {[%emt 0:00:34]} 8. exd5 {[%emt 0:00:05]} Nb8 {[%emt 0:00:31]} 9. a4 {[%emt 0:00:15]} Be7 {[%emt 0:00:29] B33: Sicilian: Pelikan and Sveshnikov Variations.} 10. b4 {[%emt 0:02:18] [#]} a6 $146 {[%emt 0:03:32]} ({Predecessor:} 10... O-O 11. a5 Nd7 12. Be2 f5 13. O-O a6 14. Na3 e4 15. Nc4 Ne5 16. Nb6 Rb8 {1-0 Arjun,K (2505)-Lim,Z (2305) Sitges Sunway op 9th 2022 (3)}) 11. Na3 {[%emt 0:00:08]} b6 {[%emt 0:00:31]} 12. Nc4 {[%emt 0:06:09]} Nd7 {[%emt 0:01:36]} 13. Be2 {[%emt 0:02:48]} O-O {[%emt 0:04:56]} 14. O-O {[%emt 0:00:16]} f5 {[%emt 0:03:17]} 15. f4 {[%emt 0:04:06]} a5 {[%emt 0:02:00]} 16. c3 {[%emt 0:08:14]} Qc7 {[%emt 0:05:04]} 17. Be3 {[%emt 0:18:20] Threatens to win with fxe5.} (17. Qb3 $5 {[%cal Rf4e5]}) 17... exf4 {[%emt 0:07:36]} (17... Ba6 $5 {[%cal Ra6c4]} 18. b5 exf4 19. Bxf4 (19. Rxf4 Bb7 $15) 19... Bb7 $15) 18. Bxf4 {[%emt 0:06:48]} (18. Rxf4 Ba6 $15) 18... Ba6 {[%emt 0:01:04]} 19. Na3 {[%emt 0:08:38] aiming for Bxa6.} Bxe2 {[%emt 0:44:10]} (19... Qxc3 $2 20. Bxa6 Bf6 21. Bb5 Bd4+ 22. Kh1 Qxa1 23. Qxa1 Bxa1 24. Bxd7 $18) 20. Qxe2 {[%emt 0:00:09]} Ne5 {[%emt 0:00:22]} 21. Bxe5 {[%emt 0:20:42]} dxe5 {[%emt 0:00:32]} 22. Nb5 {[%emt 0:00:07]} Qd7 {[%emt 0:01:25] [#]} (22... Qb8 $14) 23. d6 $1 $16 {[%emt 0:14:11]} (23. Qxe5 $6 axb4 24. d6 Bf6 25. Qd5+ (25. Qxf5 $2 Bd4+ 26. Nxd4 Rxf5 $19) 25... Kh8 $11) 23... Bxd6 {[%emt 0:12:20]} (23... Bf6 $142) 24. Rad1 {[%emt 0:00:06] White is more active.} Rf6 {[%emt 0:00:13]} 25. Nxd6 {[%emt 0:10:16]} (25. Qc4+ $16 Kh8 26. Qd5) 25... Rxd6 $11 {[%emt 0:00:11]} 26. Rxd6 {[%emt 0:00:05]} Qxd6 {[%emt 0:00:13]} 27. Rxf5 {[%emt 0:00:07]} axb4 {[%emt 0:03:36] Hoping for ...Qc5+.} 28. Rxe5 {[%emt 0:02:02]} (28. Qxe5 Qxe5 29. Rxe5 bxc3 $17) ({White should try} 28. Qc4+ $11 Kh8 29. Qxb4 Qxb4 30. cxb4) 28... bxc3 $16 {[%emt 0:02:20][%mdl 4096] Endgame KQR-KQR} (28... Rxa4 {leads to mate.} 29. Qc4+ Kf8 30. Qc8+ Kf7 31. Qf5+ Qf6 32. Qd7+ Kg6 33. Qe8+ (33. Qxa4 $2 {perishes.} Qxe5 34. Qc6+ Kg5 $19) 33... Qf7 34. Re6+ Kg5 35. Qxf7) 29. Qc4+ {[%emt 0:02:49]} Kh8 {[%emt 0:00:39]} 30. Qxc3 {[%emt 0:00:32]} Qd1+ {[%emt 0:00:42]} (30... Rxa4 $2 {is a self mate.} 31. Re8+) 31. Re1 {[%emt 0:02:46]} Qxa4 {[%emt 0:00:37]} 32. h3 {[%emt 0:00:20]} h6 {[%emt 0:01:01]} 33. Re6 $1 {[%emt 0:00:54][%csl LRb6,LRh6]} Qa1+ {[%emt 0:00:39]} 34. Qxa1 {[%emt 0:00:06]} Rxa1+ $11 {[%emt 0:00:10] KR-KR} 35. Kf2 {[%emt 0:00:04] [#]} Rb1 $1 {[%emt 0:00:45]} 36. h4 {[%emt 0:01:06]} h5 {[%emt 0:03:21]} (36... Kg8 $17) 37. Kf3 {[%emt 0:01:07] The position is equal.} Rb4 {[%emt 0:02:20]} 38. g3 {[%emt 0:00:26]} Kh7 {[%emt 0:00:59]} 39. Rc6 {[%emt 0:00:42]} b5 {[%emt 0:00:24] ...Rc4 is the strong threat.} 40. Rb6 {[%emt 0:00:12]} Kg8 {[%emt 0:00:46]} 41. Rb7 {[%emt 0:40:10]} Kf8 {[%emt 0:40:16]} 42. Ke3 {[%emt 0:00:00]} g6 {[%emt 0:00:00]} 43. Kf3 {[%emt 0:00:00]} Kg8 {[%emt 0:00:00]} 44. Kf2 {[%emt 0:00:00]} Rb3 {[%emt 0:00:00]} 45. Kg2 {[%emt 0:00:00]} Rb1 {[%emt 0:00:00]} 46. Kf3 {[%emt 0:00:00]} Rf1+ {[%emt 0:00:00]} (46... Rb2 $5 {[%cal Rb2b4]}) 47. Kg2 {[%emt 0:00:00]} Rf5 {[%emt 0:00:00]} 48. g4 {[%emt 0:00:00]} Rc5 {[%emt 0:00:00]} 49. gxh5 {[%emt 0:00:00]} gxh5 {[%emt 0:00:00]} 50. Kf3 {[%emt 0:00:00]} Kf8 {[%emt 0:00:00]} 51. Ke4 {[%emt 0:00:00]} Ke8 {[%emt 0:00:00]} 52. Kd4 {[%emt 0:00:00]} Rc4+ {[%emt 0:00:00]} 53. Kd3 $1 {[%emt 0:00:00]} Rb4 {[%emt 0:00:00]} 54. Kc3 {[%emt 0:00:00]} Rxh4 {[%emt 0:00:00][%cal Ob5b4] White must now prevent ...b4+!} 55. Rxb5 {[%emt 0:00:00]} Kf7 {[%emt 0:00:00]} 56. Kd3 {[%emt 0:00:00]} Kg6 {[%emt 0:00:00]} 57. Ke3 {[%emt 0:00:00]} Rg4 {[%emt 0:00:00]} 58. Kf3 {[%emt 0:00:00]} Kh6 {[%emt 0:00:00]} 59. Ra5 {[%emt 0:00:00]} Rg6 {[%emt 0:00:00]} 60. Ra4 {[%emt 0:00:00]} Rg1 {[%emt 0:00:00]} 61. Kf2 {[%emt 0:00:00]} Rg8 {[%emt 0:00:00]} 62. Kf3 {[%emt 0:00:00]} Rg1 {[%emt 0:00:00] Weighted Error Value: White=0.08 (flawless) /Black=0.10 (very precise)} 1/2-1/2

[Event "4NCL 2022-2023"]
[Site "Daventry"]
[Date "2023.02.11"]
[Round "5.37"]
[White "Pein, Jonathan"]
[Black "Hill, Alistair"]
[Result "1/2-1/2"]
[ECO "B20"]
[WhiteElo "2256"]
[BlackElo "2173"]
[Annotator "TA"]
[PlyCount "115"]
[EventDate "2022.10.20"]
[EventType "team-tourn"]
[EventCountry "ENG"]
[SourceTitle "playchess.com"]
[Source "ChessBase"]
[SourceQuality "1"]
[TimeControl "40/6000+30:2400+30"]

{[%evp 9,115,34,19,-24,0,0,0,0,0,0,0,0,0,0,0,0,0,-25,-21,-91,-96,-101,-68,-109,-97,-148,-162,-162,-35,-53,-40,-93,-12,-9,-8,-8,-8,-10,-14,-10,-30,-29,-35,-32,-8,-8,-10,-8,-2,-7,-10,-32,0,0,0,0,0,0,0,0,0,0,0,-4,0,-7,0,-8,-8,-8,-8,-4,-4,-8,0,0,0,0,0,0,0,0,0,0,0,0,0,0,0,0,0,0,0,0,0,0,0,0,0,0,0,0,0,0,0,0,0,0]} 1. e4 {[%emt 0:00:02]} c5 {[%emt 0:00:26]} 2. g3 {[%emt 0:00:03]} Nc6 {[%emt 0:00:25]} 3. Bg2 {[%emt 0:00:03]} Nf6 {[%emt 0:04:44][%cal Bg8f6,Bf6d5,Bd5b4][%mdl 32]} 4. Ne2 {[%emt 0:01:08]} d5 {[%emt 0:09:44]} 5. exd5 {[%emt 0:00:11]} Nxd5 {[%emt 0:00:03]} 6. d4 {[%emt 0:02:20] B20: Sicilian: Unusual White 2nd moves.} cxd4 {[%emt 0:03:22]} (6... Bg4 {feels hotter.} 7. c3 e6 8. O-O Rc8) 7. Nxd4 {[%emt 0:00:46]} Ndb4 {[%emt 0:00:05]} 8. Nxc6 {[%emt 0:13:41][%csl Gc6][%cal Rd1d8] [#]} Qxd1+ {[%emt 0:01:22]} 9. Kxd1 {[%emt 0:00:02]} Nxc6 {[%emt 0:00:08]} 10. Be3 {[%emt 0:01:02]} g6 {[%emt 0:03:05] [#]} 11. Nc3 $146 {[%emt 0:03:10]} ({Predecessor:} 11. Nd2 Bg7 12. c3 O-O 13. Ke2 Ne5 14. Bd4 Bg4+ 15. f3 Bd7 16. f4 Bb5+ 17. Kd1 {0-1 Buchenau,F (2250)-De la Villa Garcia,J (2440) Sitges op 1993 (6)}) 11... Bg7 {[%emt 0:00:47]} 12. Kc1 {[%emt 0:09:41]} O-O {[%emt 0:02:04]} 13. Bc5 {[%emt 0:04:31]} Bf5 {[%emt 0:07:21]} 14. Re1 {[%emt 0:13:10]} (14. Bxc6 $11 {keeps the balance.} bxc6 15. a4) 14... Rac8 $17 {[%emt 0:24:43]} 15. Nd5 {[%emt 0:15:27]} Rfe8 {[%emt 0:21:28]} 16. c3 {[%emt 0:05:14]} e6 {[%emt 0:00:50]} 17. Nb4 {[%emt 0:11:32]} (17. Ne3 $142) 17... Nxb4 {[%emt 0:02:10]} 18. Bxb4 {[%emt 0:00:07] [#]} b6 {[%emt 0:00:05]} ({Black should try} 18... Bh6+ $1 $19 19. Kd1 (19. f4 $2 e5 $17) 19... Red8+ 20. Ke2 Rd2+ 21. Kf1 b6) 19. Bb7 {[%emt 0:10:55]} Rc7 {[%emt 0:03:03]} 20. Ba6 {[%emt 0:00:51]} (20. Be4 $15) 20... Rd8 {[%emt 0:00:05]} ({Black should play} 20... Bh6+ $17 21. f4 e5) 21. Rd1 $11 {[%emt 0:02:59]} Rcd7 {[%emt 0:00:09]} 22. Rxd7 {[%emt 0:01:20]} Rxd7 {[%emt 0:00:05]} 23. Bb5 $1 {[%emt 0:01:42]} Rd5 {[%emt 0:01:21]} 24. Bc4 $1 {[%emt 0:02:35]} Rd8 {[%emt 0:01:04] ...e5 would be deadly.} 25. Be7 $1 {[%emt 0:01:01]} Bh6+ {[%emt 0:04:33]} 26. f4 {[%emt 0:00:10]} Rd7 {[%emt 0:00:04]} (26... Re8 $5 {[%cal Re8e7]} 27. Bg5 Bg7 $11) 27. Bf6 {[%emt 0:01:24]} Bg7 {[%emt 0:00:27]} 28. Bxg7 {[%emt 0:04:39]} Kxg7 {[%emt 0:00:05][%mdl 4096] Endgame KRB-KRB} 29. a4 {[%emt 0:01:17]} a5 {[%emt 0:00:06]} 30. Be2 {[%emt 0:00:11]} e5 {[%emt 0:06:22]} 31. fxe5 {[%emt 0:00:45] The position is equal.} Rd5 {[%emt 0:00:31]} 32. b4 {[%emt 0:01:07]} Rxe5 {[%emt 0:02:42]} 33. Kd2 {[%emt 0:00:17]} Bd7 {[%emt 0:00:16]} 34. Bc4 {[%emt 0:01:25]} g5 {[%emt 0:01:15]} 35. bxa5 {[%emt 0:01:36]} Rxa5 {[%emt 0:00:27]} 36. Bb3 {[%emt 0:00:22]} f5 {[%emt 0:01:06]} 37. c4 {[%emt 0:01:20]} Kf6 {[%emt 0:00:11]} 38. Kc3 {[%emt 0:00:04]} f4 {[%emt 0:00:41]} 39. Rf1 {[%emt 0:01:02]} Ke5 {[%emt 0:05:41]} 40. gxf4+ {[%emt 0:00:41]} gxf4 {[%emt 0:00:07]} 41. Re1+ {[%emt 0:00:00]} Kf5 {[%emt 0:00:00]} 42. Re7 {[%emt 0:16:38]} Bxa4 {[%emt 0:00:00]} 43. Bxa4 {[%emt 0:01:10]} Rxa4 {[%emt 0:00:00]} 44. Rxh7 {[%emt 0:00:13] KR-KR} Ke4 {[%emt 0:00:00]} 45. Re7+ {[%emt 0:01:40]} Kf3 {[%emt 0:00:00]} 46. Re6 {[%emt 0:03:16]} Kg2 {[%emt 0:00:29]} 47. Rxb6 {[%emt 0:01:59]} f3 {[%emt 0:00:05]} 48. Kd4 {[%emt 0:08:04]} f2 {[%emt 0:01:33]} 49. Rf6 {[%emt 0:01:48]} f1=Q {[%emt 0:00:21]} 50. Rxf1 {[%emt 0:00:08]} Kxf1 {[%emt 0:00:05] KR-KPP} 51. Kd5 {[%emt 0:00:57]} Kg2 {[%emt 0:01:50]} 52. c5 {[%emt 0:00:47]} Kxh2 {[%emt 0:02:19] KR-KP} 53. c6 {[%emt 0:00:10]} Kg3 {[%emt 0:00:05]} 54. c7 {[%emt 0:00:25]} Ra8 {[%emt 0:00:03]} 55. Kc6 {[%emt 0:00:10]} Kf4 {[%emt 0:00:04]} 56. Kb7 {[%emt 0:00:15]} Rh8 {[%emt 0:00:03]} 57. c8=Q {[%emt 0:00:12]} Rxc8 58. Kxc8 {[%emt 0:00:30] Weighted Error Value: White=0.09 (flawless) /Black=0.11 (very precise)} 1/2-1/2

[Event "4NCL 2022-2023"]
[Site "Daventry"]
[Date "2023.02.11"]
[Round "5.38"]
[White "Robertson, J Stuart"]
[Black "Skulte, Christopher"]
[Result "1-0"]
[ECO "D20"]
[WhiteElo "2155"]
[BlackElo "2086"]
[Annotator "TA"]
[PlyCount "168"]
[EventDate "2022.10.20"]
[EventType "team-tourn"]
[EventCountry "ENG"]
[SourceTitle "playchess.com"]
[Source "ChessBase"]
[SourceQuality "1"]
[TimeControl "40/6000+30:2400+30"]

{[%evp 9,167,-118,-26,-51,30,26,34,37,27,31,30,0,0,0,13,-24,-28,-66,-72,-66,-8,-20,-17,-30,0,0,62,64,57,39,62,48,52,34,88,38,165,54,64,44,48,5,15,0,23,39,56,45,47,39,89,89,227,215,205,64,71,56,141,148,148,148,148,148,260,259,241,64,64,64,64,40,40,40,40,40,64,40,64,40,64,40,64,40,64,14,36,36,36,36,36,36,36,0,29,29,29,29,29,29,29,29,29,29,29,29,29,29,29,29,29,29,29,29,29,29,29,29,29,29,29,29,29,29,29,0,29,29,29,29,29,29,29,29,29,29,29,29,29,29,29,29,29,0,29,29,29,29,29,29,12845,12845,12845,12846,12846,12847,12847,12847,12848,12848]} 1. d4 {[%emt 0:05:12]} d5 {[%emt 0:00:33]} 2. c4 {[%emt 0:00:03]} dxc4 {[%emt 0:01:27]} 3. e4 {[%emt 0:00:04]} b5 {[%emt 0:01:12]} 4. b3 {[%emt 0:06:27]} e5 {[%emt 0:02:38]} 5. d5 {[%emt 0:06:37] [#]} f5 $146 {[%emt 0:06:20]} (5... Nf6 $17 6. Qc2 Bb4+ 7. Bd2 Bc5) ({Predecessor:} 5... Nf6 6. Qc2 c6 7. Bxc4 Bb4+ 8. Nd2 O-O 9. a3 Ba5 10. Ne2 cxd5 11. exd5 Ba6 12. O-O Bxd2 13. Bxd2 Qxd5 14. Bb4 Rc8 15. Rfd1 Rxc4 16. h4 h5 17. Kf1 Rxb4 18. Re1 Ra4 {½-½ Santiago,Y (2477)-Paveto,K (2405) Villa Tehuelches op 2017 (4)}) 6. bxc4 $11 {[%emt 0:06:29] D20: Queen's Gambit Accepted: 3 e3 and 3 e4.} bxc4 {[%emt 0:08:20]} (6... Bb4+ $15 7. Bd2 Bc5) 7. Bxc4 {[%emt 0:08:24]} Nf6 {[%emt 0:09:51]} 8. exf5 {[%emt 0:02:45] White is slightly better.} Bxf5 {[%emt 0:04:47]} 9. Nf3 {[%emt 0:04:21]} Bd6 {[%emt 0:04:20]} 10. h3 {[%emt 0:05:51]} O-O {[%emt 0:05:28]} 11. O-O {[%emt 0:00:31]} Nbd7 {[%emt 0:05:27]} 12. Re1 {[%emt 0:11:45]} Ne4 {[%emt 0:07:40][%cal Oe4f2] White must now prevent ...Nxf2!} 13. Nbd2 {[%emt 0:05:46]} Nec5 {[%emt 0:09:52] ...e4 is the strong threat.} 14. Nb3 {[%emt 0:06:49]} Qf6 {[%emt 0:05:58]} (14... e4 $1 $15 15. Nxc5 Nxc5) 15. Nxc5 {[%emt 0:07:16]} (15. Bg5 {is interesting.} Qg6 16. Be7 Bc2 17. Qe2) 15... Nxc5 {[%emt 0:00:42]} 16. Bb2 {[%emt 0:06:17][%cal Rb2e5]} Rae8 {[%emt 0:02:31][%cal Of5h3]} (16... Bxh3 $5 17. Bxe5 Qg6 $15) 17. Re3 {[%emt 0:05:27]} Nd7 {[%emt 0:12:48]} (17... Be4 $11) 18. Qe2 $14 {[%emt 0:02:56]} Qg6 {[%emt 0:03:28]} 19. Nh4 {[%emt 0:02:31]} ({Much worse is} 19. Nxe5 $6 Nxe5 20. Bxe5 Rxe5 21. Rxe5 Bxh3 $11) (19. Bb5 {looks sharper.} e4 20. Nh4 Qg5 21. Nxf5 Qxf5 22. Bxd7 Qxd7 23. Rxe4 Rxe4 24. Qxe4 Re8 25. Qd3) 19... Qg5 {[%emt 0:00:43]} 20. Nxf5 {[%emt 0:00:06]} Rxf5 {[%emt 0:00:14]} 21. Rg3 {[%emt 0:02:13]} (21. Rf1 {feels hotter.} Ref8 22. Bc1 Qh4 23. Bd3) 21... Qf6 {[%emt 0:01:23]} ({Black should try} 21... Qe7 $14) 22. Rf1 {[%emt 0:02:15] Black is weak on the light squares} (22. Bd3 $16 {aiming for Qg4.} Rg5 23. Rxg5 Qxg5 24. Qc2) 22... Kh8 {[%emt 0:01:56]} ({Better is} 22... Nc5 $14) 23. Bb5 {[%emt 0:01:45] A strong pair of Bishops.} ({White has to play} 23. Bd3 $1 $18) 23... Re7 {[%emt 0:00:54]} 24. Bxd7 {[%emt 0:02:21]} Rxd7 {[%emt 0:00:07]} 25. Qb5 {[%emt 0:02:22] Wards off Bc5} (25. Re3 $5 {[%cal Rg2g4]}) 25... Rd8 {[%emt 0:05:15]} 26. Qa5 {[%emt 0:02:36]} Qf8 {[%emt 0:00:09]} 27. Ba3 {[%emt 0:00:25] Prevents Bc5.} (27. Qxa7 $2 {perishes.} Bc5 28. Ba3 (28. Qxc7 $2 {loses.} Rxf2 29. h4 Rxf1+ $19) 28... Bxa7 $19) 27... Bxa3 {[%emt 0:01:30]} 28. Rxa3 {[%emt 0:00:05]} (28. Qxa3 {is more complex.} Rxd5 29. Qxa7 Qc5 30. Qb8+) 28... Rxd5 {[%emt 0:00:10][%mdl 64] Deflection} 29. Qxa7 {[%emt 0:00:21]} Rd2 {[%emt 0:01:54]} (29... h6 $14) 30. Rb3 $16 {[%emt 0:00:35]} h6 {[%emt 0:01:07]} (30... Qd6 $16 {was called for.}) 31. Rb8 $18 {[%emt 0:01:51]} Rd8 {[%emt 0:00:12]} 32. Rxd8 {[%emt 0:00:37]} (32. Rfb1 $18 Kh7 33. Qxc7) 32... Qxd8 {[%emt 0:00:02][%mdl 4096] Endgame KQR-KQR} 33. a4 {[%emt 0:00:11][%cal Ba2a4,Ba4a5][%mdl 32]} Qd4 {[%emt 0:00:55]} ({Black should play} 33... e4 $14) 34. Qxc7 $16 {[%emt 0:00:27] White threatens Qc8+ and mate.} Kh7 {[%emt 0:00:46]} 35. Qc2 {[%emt 0:01:10]} e4 {[%emt 0:00:57]} 36. Re1 $1 {[%emt 0:00:37]} Rf4 {[%emt 0:01:57]} (36... Qd3 $16 {keeps fighting.} 37. Qe2 Qd4 38. Qxe4 Qxf2+ 39. Kh1 Kg8) 37. a5 $18 {[%emt 0:00:56]} Qd3 {[%emt 0:00:28]} 38. Qxd3 {[%emt 0:01:05]} (38. Qa4 $18) 38... exd3 {[%emt 0:00:08] KR-KR} 39. Ra1 {[%emt 0:00:18]} (39. Rd1 {simplifies} Ra4 40. Rxd3 Rxa5 41. h4) 39... d2 {[%emt 0:00:30]} 40. Kf1 {[%emt 0:00:38]} (40. Rd1 {simplifies} Ra4 41. Rxd2 Ra1+ 42. Kh2) 40... Ra4 {[%emt 0:00:13][%mdl 64] Deflection, Back Rank, Promotion} 41. Rd1 {[%emt 0:41:54]} (41. Rxa4 $2 d1=Q#) 41... Rxa5 {[%emt 0:43:19]} 42. Rxd2 {[%emt 0:00:10]} Re5 {[%emt 0:00:52]} 43. Rd6 {[%emt 0:00:09]} h5 {[%emt 0:00:17]} 44. g3 {[%emt 0:00:00]} g6 {[%emt 0:00:00]} 45. Kg2 {[%emt 0:00:00]} Ra5 {[%emt 0:00:00]} 46. Re6 {[%emt 0:00:00]} Kg7 {[%emt 0:00:00]} 47. f4 {[%emt 0:00:00]} (47. h4 $14) 47... Ra2+ {[%emt 0:00:00]} 48. Kf3 {[%emt 0:00:00]} Rh2 {[%emt 0:00:00]} 49. Re2 {[%emt 0:00:00]} Rh1 {[%emt 0:00:00]} 50. Kg2 {[%emt 0:00:00]} Ra1 {[%emt 0:00:00]} 51. g4 {[%emt 0:00:00]} hxg4 {[%emt 0:00:00]} 52. hxg4 {[%emt 0:00:00]} Ra3 {[%emt 0:00:00]} 53. Kf2 {[%emt 0:00:00]} Kf6 {[%emt 0:00:00]} 54. Re3 {[%emt 0:00:00]} Ra2+ {[%emt 0:00:00]} 55. Kf3 {[%emt 0:00:00]} Ra4 {[%emt 0:00:00]} 56. Rb3 {[%emt 0:00:00]} Ra6 {[%emt 0:00:00]} 57. Rd3 {[%emt 0:00:00]} Rb6 {[%emt 0:00:00]} 58. Rd4 {[%emt 0:00:00]} Ra6 {[%emt 0:00:00]} 59. Ke4 {[%emt 0:00:00]} Ke6 {[%emt 0:00:00]} 60. Rb4 {[%emt 0:00:00]} Rc6 {[%emt 0:00:00]} 61. g5 {[%emt 0:00:00]} Ra6 {[%emt 0:00:00]} 62. Rb8 {[%emt 0:00:00]} Ra4+ {[%emt 0:00:00]} 63. Kf3 {[%emt 0:00:00] Strongly threatening Rf8.} Ra3+ {[%emt 0:00:00]} 64. Kg4 {[%emt 0:00:00] Rf8 would be deadly.} Kf7 {[%emt 0:00:00] Wards off Rf8+} 65. Rh8 {[%emt 0:00:00]} Rb3 {[%emt 0:00:00]} 66. Rh7+ {[%emt 0:00:00]} Kg8 {[%emt 0:00:00]} 67. Rh3 {[%emt 0:00:00]} Rb1 {[%emt 0:00:00]} 68. Rd3 {[%emt 0:00:00]} Rf1 {[%emt 0:00:00]} 69. Rd4 {[%emt 0:00:00]} Kf7 {[%emt 0:00:00]} 70. Rd7+ {[%emt 0:00:00]} Kf8 {[%emt 0:00:00]} 71. Kg3 {[%emt 0:00:00]} Kg8 {[%emt 0:00:00]} 72. Rd4 {[%emt 0:00:00]} Kf7 {[%emt 0:00:00]} 73. Kg2 {[%emt 0:00:00]} Ra1 {[%emt 0:00:00]} 74. Kf3 {[%emt 0:00:00]} Ra3+ {[%emt 0:00:00]} 75. Ke4 {[%emt 0:00:00]} Ke6 {[%emt 0:00:00]} 76. Rb4 {[%emt 0:00:00]} Ra6 {[%emt 0:00:00]} 77. Rb7 {[%emt 0:00:00]} Ra4+ {[%emt 0:00:00]} 78. Kf3 {[%emt 0:00:00]} Ra3+ {[%emt 0:00:00]} 79. Kg4 {[%emt 0:00:00] Threatens to win with Rg7.} Ra1 $2 {[%emt 0:00:00][%mdl 8192]} (79... Ra6 $11) 80. Rg7 {[%emt 0:00:00] White is clearly winning.} Rg1+ {[%emt 0:00:00]} 81. Kf3 {[%emt 0:00:00]} Rf1+ {[%emt 0:00:00] [#]} 82. Kg3 $1 {[%emt 0:00:00]} Kf5 {[%emt 0:00:00] [#]} 83. Rf7+ $1 {[%emt 0:00:00]} Ke4 {[%emt 0:00:00]} 84. Re7+ {[%emt 0:00:00]} Kd5 {[%emt 0:00:00] Weighted Error Value: White=0.21 (precise) /Black=0.28 (precise)} 1-0